fUSD/lending_fUSD_20260324
["ID","MTS","AMOUNT","RATE_DAILY","PERIOD"]
[408861783,1774343662182,-500.0,0.00045479,120]
[408861784,1774343662220,-500.0,0.00045479,120]
[408861785,1774343662261,-2177.36,0.00045479,120]
[408861786,1774343662301,-500.0,0.00045479,120]
[408861787,1774343662337,-500.0,0.00045479,120]
[408861788,1774343662376,-500.0,0.00045479,120]
[408861789,1774343662413,-500.0,0.00045479,120]
[408861790,1774343662449,-500.0,0.00045479,120]
[408861791,1774343662487,-583.79,0.00045479,120]
[408861792,1774343662521,-565.07,0.00045479,120]
[408861793,1774343662557,-294.34338229,0.00045479,120]
[408861794,1774343662591,-500.0,0.00045479,120]
[408861795,1774343662626,-1834.25,0.00045479,120]
[408861796,1774343662660,-500.0,0.00045479,120]
[408861797,1774343662695,-508.82,0.00045479,120]
[408861798,1774343662729,-500.0,0.00045479,120]
[408861799,1774343662765,-1021.78,0.00045479,120]
[408861800,1774343662800,-500.0,0.00045479,120]
[408861801,1774343662835,-500.0,0.00045479,120]
[408861802,1774343662869,-500.0,0.00045479,120]
[408861803,1774343662904,-500.0,0.00045479,120]
[408861804,1774343662948,-800.99,0.00045479,120]
[408861805,1774343662989,-500.0,0.00045479,120]
[408861806,1774343663029,-500.0,0.00045479,120]
[408861807,1774343663069,-509.38,0.00045479,120]
[408861808,1774343663122,-332.11469749,0.00045479,120]
[408861809,1774343663164,-500.0,0.00045479,120]
[408861810,1774343663206,-576.51,0.00045479,120]
[408861811,1774343663245,-962.78,0.00045479,120]
[408861812,1774343663282,-972.01,0.00045479,120]
[408861813,1774343663319,-837.97,0.00045479,120]
[408861814,1774343663358,-837.64,0.00045479,120]
[408861815,1774343663397,-500.0,0.00045479,120]
[408861816,1774343663437,-500.0,0.00045479,120]
[408861817,1774343663477,-500.0,0.00045479,120]
[408861818,1774343663518,-500.0,0.00045479,120]
[408861819,1774343663556,-500.0,0.00045479,120]
[408861820,1774343663597,-500.0,0.00045479,120]
[408861821,1774343663636,-500.0,0.00045479,120]
[408861822,1774343663674,-500.0,0.00045479,120]
[408861823,1774343663711,-500.0,0.00045479,120]
[408861824,1774343663751,-1066.06,0.00045479,120]
[408861825,1774343663789,-500.0,0.00045479,120]
[408861826,1774343663825,-500.0,0.00045479,120]
[408861827,1774343663860,-869.54,0.00045479,120]
[408861828,1774343663897,-2702.93,0.00045479,120]
[408861829,1774343663935,-500.0,0.00045479,120]
[408861830,1774343663972,-546.46,0.00045479,120]
[408861831,1774343664007,-500.0,0.00045479,120]
[408861832,1774343664046,-1138.07,0.00045479,120]
[408861833,1774343664082,-500.0,0.00045479,120]
[408861834,1774343664117,-500.0,0.00045479,120]
[408861835,1774343664154,-500.0,0.00045479,120]
[408861836,1774343664190,-500.0,0.00045479,120]
[408861837,1774343664227,-500.0,0.00045479,120]
[408861838,1774343664264,-591.94984657,0.00045479,120]
[408861839,1774343664302,-3001.86,0.00045479,120]
[408861840,1774343664340,-500.0,0.00045479,120]
[408861841,1774343664379,-680.57,0.00045479,120]
[408861842,1774343664420,-500.0,0.00045479,30]
[408861843,1774343664461,-500.0,0.00045479,120]
[408861844,1774343664504,-500.0,0.00045479,120]
[408861845,1774343664778,-500.0,0.00045479,120]
[408861846,1774343664818,-423.23240827,0.00045479,120]
[408861847,1774343664856,-500.0,0.00045479,120]
[408861848,1774343664892,-500.0,0.00045479,120]
[408861849,1774343664929,-500.0,0.00045479,120]
[408861850,1774343664965,-643.38,0.00045479,120]
[408861851,1774343665002,-500.0,0.00045479,120]
[408861852,1774343665041,-500.0,0.00045479,120]
[408861853,1774343665078,-500.0,0.00045479,120]
[408861854,1774343665117,-500.0,0.00045479,120]
[408861855,1774343665155,-500.0,0.00045479,120]
[408861856,1774343665193,-843.35,0.00045479,120]
[408861857,1774343665230,-540.88361506,0.00045479,120]
[408861858,1774343665269,-783.12,0.00045479,120]
[408861859,1774343665308,-16702.03,0.000455,120]
[408861860,1774343665346,-9330.02,0.000455,120]
[408861861,1774343665388,-171.5,0.000455,30]
[408861862,1774343665431,-531.89339525,0.00045752,60]
[408861863,1774343665472,-156.52166451,0.00045753,120]
[408861864,1774343665512,-500.0,0.00045753,120]
[408861865,1774343665550,-500.0,0.00045753,120]
[408861866,1774343665591,-503.02,0.00045753,120]
[408861867,1774343665632,-500.0,0.00045753,60]
[408861868,1774343665672,-500.0,0.00045753,120]
[408861869,1774343665709,-500.0,0.00045753,120]
[408861870,1774343665750,-500.0,0.00045753,120]
[408861871,1774343665791,-500.0,0.00045753,120]
[408861872,1774343665828,-500.0,0.00045753,120]
[408861873,1774343665867,-500.0,0.00045753,120]
[408861874,1774343665904,-1726.03,0.00045753,120]
[408861875,1774343665943,-513.73,0.00045753,120]
[408861876,1774343665981,-500.0,0.00045753,120]
[408861877,1774343666017,-1681.41,0.00045753,120]
[408861878,1774343666052,-500.0,0.00045753,120]
[408861879,1774343666088,-500.0,0.00045753,120]
[408861880,1774343666126,-500.0,0.00045753,120]
[408861881,1774343666165,-500.0,0.00045753,120]
[408861882,1774343666205,-500.0,0.00045753,120]
[408861883,1774343666246,-500.0,0.00045753,120]
[408861884,1774343666285,-500.0,0.00045753,30]
[408861885,1774343666321,-500.0,0.00045753,120]
[408861886,1774343666357,-500.0,0.00045753,120]
[408861887,1774343666394,-500.0,0.00045753,120]
[408861888,1774343666433,-500.0,0.00045753,120]
[408861889,1774343666470,-500.0,0.00045753,120]
[408861890,1774343666507,-500.0,0.00045753,120]
[408861891,1774343666544,-500.0,0.00045753,60]
[408861892,1774343666580,-972.96,0.00045753,120]
[408861893,1774343666615,-500.0,0.00045753,120]
[408861894,1774343666655,-567.13,0.00045753,120]
[408861895,1774343666692,-500.0,0.00045753,120]
[408861896,1774343666731,-1765.46,0.00045753,120]
[408861897,1774343666768,-500.0,0.00045753,120]
[408861898,1774343666805,-500.0,0.00045753,120]
[408861899,1774343666840,-500.0,0.00045753,120]
[408861900,1774343666875,-657.93,0.00045753,120]
[408861901,1774343666912,-500.0,0.00045753,120]
[408861902,1774343666949,-500.0,0.00045753,120]
[408861903,1774343666986,-500.0,0.00045753,120]
[408861904,1774343667027,-500.0,0.00045753,120]
[408861905,1774343667065,-500.0,0.00045753,120]
[408861906,1774343667108,-1353.82,0.00045753,90]
[408861907,1774343667150,-500.0,0.00045753,120]
[408861908,1774343667190,-500.0,0.00045753,120]
[408861909,1774343667229,-577.26,0.00045753,120]
[408861910,1774343667267,-500.0,0.00045753,120]
[408861911,1774343667348,-854.16,0.00045753,120]
[408861912,1774343667386,-500.0,0.00045753,120]
[408861913,1774343667427,-622.22,0.00045753,120]
[408861914,1774343667467,-2990.76,0.00045753,120]
[408861915,1774343667507,-500.0,0.00045753,120]
[408861916,1774343667547,-500.0,0.00045753,120]
[408861917,1774343667585,-500.0,0.00045753,120]
[408861918,1774343667622,-500.0,0.00045753,120]
[408861919,1774343667659,-500.0,0.00045753,120]
[408861920,1774343667696,-500.0,0.00045753,120]
[408861921,1774343667734,-500.0,0.00045753,120]
[408861922,1774343667773,-1240.59,0.00045753,120]
[408861923,1774343667809,-500.0,0.00045753,120]
[408861924,1774343667845,-537.3738698,0.00045753,120]
[408861925,1774343667879,-500.0,0.00045753,120]
[408861926,1774343667915,-500.0,0.00045753,120]
[408861927,1774343667951,-950.15,0.00045753,120]
[408861928,1774343667986,-500.0,0.00045753,120]
[408861929,1774343668021,-500.0,0.00045753,120]
[408861930,1774343668056,-899.71,0.00045753,120]
[408861931,1774343668093,-500.0,0.00045753,120]
[408861932,1774343668132,-500.0,0.00045753,120]
[408861933,1774343668175,-205.76893104,0.00045753,120]
[408861934,1774343668217,-1801.6,0.00045753,120]
[408861935,1774343668258,-500.0,0.00045753,120]
[408861936,1774343668295,-500.0,0.00045753,120]
[408861937,1774343668331,-500.0,0.00045753,120]
[408861938,1774343668368,-500.0,0.00045753,120]
[408861939,1774343668403,-500.0,0.00045753,120]
[408861940,1774343668439,-500.0,0.00045753,120]
[408861941,1774343668473,-500.0,0.00045753,120]
[408861942,1774343668508,-500.0,0.00045753,120]
[408861943,1774343668543,-594.54,0.00045753,120]
[408861944,1774343668580,-1151.07,0.00045753,120]
[408861945,1774343668615,-500.0,0.00045753,120]
[408861946,1774343668649,-500.0,0.00045753,120]
[408861947,1774343668683,-500.0,0.00045753,120]
[408861948,1774343668722,-1738.86,0.00045753,120]
[408861949,1774343668760,-500.0,0.00045753,120]
[408861950,1774343668795,-416.34165432,0.00045753,120]
[408861951,1774343668831,-500.0,0.00045753,120]
[408861952,1774343668866,-500.0,0.00045753,120]
[408861953,1774343668902,-693.75,0.00045753,120]
[408861954,1774343668941,-743.4,0.00045753,120]
[408861955,1774343668977,-1352.88,0.00045753,120]
[408861956,1774343669014,-6207.8,0.00045753,120]
[408861957,1774343669050,-500.0,0.00045753,120]
[408861958,1774343669085,-500.0,0.00045753,120]
[408861959,1774343669123,-500.0,0.00045753,120]
[408861960,1774343669161,-504.31,0.00045753,120]
[408861961,1774343669198,-542.07,0.00045753,120]
[408861962,1774343669238,-500.0,0.00045753,120]
[408861963,1774343669278,-2152.6,0.00045753,120]
[408861964,1774343669317,-500.0,0.00045753,60]
[408861965,1774343669357,-500.0,0.00045753,120]
[408861966,1774343669396,-569.71,0.00045753,120]
[408861967,1774343669436,-500.0,0.00045753,120]
[408861968,1774343669477,-500.0,0.00045753,120]
[408861969,1774343669520,-604.99,0.00045753,120]
[408861970,1774343669565,-500.0,0.00045753,120]
[408861971,1774343669607,-500.0,0.00045753,120]
[408861972,1774343669646,-500.0,0.00045753,120]
[408861973,1774343669684,-623.34,0.00045753,120]
[408861974,1774343669721,-500.0,0.00045753,120]
[408861975,1774343669762,-500.0,0.00045753,120]
[408861976,1774343669799,-500.0,0.00045753,120]
[408861977,1774343669837,-500.0,0.00045753,120]
[408861978,1774343669875,-500.0,0.00045753,120]
[408861979,1774343669924,-302.36929914,0.00045753,120]
[408861980,1774343669967,-500.0,0.00045753,120]
[408861981,1774343670009,-602.04,0.00045753,120]
[408861982,1774343670049,-500.0,0.00045753,120]
[408861983,1774343670088,-483.1057113,0.00045753,120]
[408861984,1774343670128,-730.05,0.00045753,120]
[408861985,1774343670167,-1212.73,0.00045753,120]
[408861986,1774343670206,-1091.4,0.00045753,60]
[408861987,1774343670246,-500.0,0.00045753,120]
[408861988,1774343670286,-500.0,0.00045753,120]
[408861989,1774343670323,-500.0,0.00045753,120]
[408861990,1774343670361,-618.3,0.00045753,120]
[408861991,1774343670400,-574.75,0.00045753,120]
[408861992,1774343670440,-500.0,0.00045753,120]
[408861993,1774343670478,-500.0,0.00045753,120]
[408861994,1774343670519,-500.0,0.00045753,120]
[408861995,1774343670560,-2177.36,0.00045753,120]
[408861996,1774343670604,-500.0,0.00045753,120]
[408861997,1774343670644,-557.08693165,0.00045753,120]
[408861998,1774343670685,-500.0,0.00045753,120]
[408861999,1774343670724,-500.0,0.00045753,120]
[408862000,1774343670765,-500.0,0.00045753,120]
[408862001,1774343670803,-583.79,0.00045753,120]
[408862002,1774343670842,-565.07,0.00045753,120]
[408862003,1774343670881,-500.0,0.00045753,120]
[408862004,1774343670921,-1834.25,0.00045753,120]
[408862005,1774343670963,-500.0,0.00045753,120]
[408862006,1774343671008,-508.82,0.00045753,120]
[408862007,1774343671239,-500.0,0.00045753,120]
[408862008,1774343671283,-1021.78,0.00045753,120]
[408862009,1774343671326,-500.0,0.00045753,120]
[408862010,1774343671366,-500.0,0.00045753,120]
[408862011,1774343671408,-500.0,0.00045753,120]
[408862012,1774343671452,-500.0,0.00045753,120]
[408862013,1774343671495,-800.99,0.00045753,120]
[408862014,1774343671539,-500.0,0.00045753,120]
[408862015,1774343671580,-195.19649295,0.00045753,120]
[408862016,1774343671620,-509.38,0.00045753,120]
[408862017,1774343671662,-500.0,0.00045753,120]
[408862018,1774343671706,-576.51,0.00045753,120]
[408862019,1774343671751,-962.78,0.00045753,120]
[408862020,1774343671800,-972.01,0.00045753,120]
[408862021,1774343671841,-837.97,0.00045753,120]
[408862022,1774343671885,-837.64,0.00045753,120]
[408862023,1774343671930,-500.0,0.00045753,120]
[408862024,1774343671977,-500.0,0.00045753,120]
[408862025,1774343672019,-500.0,0.00045753,120]
[408862026,1774343672063,-500.0,0.00045753,120]
[408862027,1774343672110,-500.0,0.00045753,120]
[408862028,1774343672156,-500.0,0.00045753,120]
[408862029,1774343672196,-500.0,0.00045753,120]
[408862030,1774343672238,-500.0,0.00045753,120]
[408862031,1774343672282,-1066.06,0.00045753,120]
[408862032,1774343672324,-500.0,0.00045753,120]
[408862033,1774343672364,-500.0,0.00045753,120]
[408862034,1774343672402,-869.54,0.00045753,120]
[408862035,1774343672442,-2702.93,0.00045753,120]
[408862036,1774343672485,-500.0,0.00045753,120]
[408862037,1774343672529,-546.46,0.00045753,120]
[408862038,1774343672571,-500.0,0.00045753,120]
[408862039,1774343672611,-1138.07,0.00045753,120]
[408862040,1774343672653,-500.0,0.00045753,120]
[408862041,1774343672696,-500.0,0.00045753,120]
[408862042,1774343672739,-500.0,0.00045753,120]
[408862043,1774343672781,-500.0,0.00045753,120]
[408862044,1774343672826,-500.0,0.00045753,120]
[408862045,1774343672873,-3001.86,0.00045753,120]
[408862046,1774343672914,-500.0,0.00045753,120]
[408862047,1774343672957,-680.57,0.00045753,120]
[408862048,1774343673000,-500.0,0.00045753,30]
[408862049,1774343673046,-500.0,0.00045753,120]
[408862050,1774343673097,-203.04309958,0.00045753,120]
[408862051,1774343673144,-500.0,0.00045753,120]
[408862052,1774343673189,-500.0,0.00045753,120]
[408862053,1774343673232,-500.0,0.00045753,120]
[408862054,1774343673274,-500.0,0.00045753,120]
[408862055,1774343673314,-643.38,0.00045753,120]
[408862056,1774343673353,-586.09683942,0.00045753,120]
[408862057,1774343673397,-500.0,0.00045753,120]
[408862058,1774343673439,-500.0,0.00045753,120]
[408862059,1774343673483,-500.0,0.00045753,120]
[408862060,1774343673524,-500.0,0.00045753,120]
[408862061,1774343673563,-843.35,0.00045753,120]
[408862062,1774343673603,-1000.0,0.000458,120]
[408862063,1774343673643,-2006.65,0.000458,120]
[408862064,1774343673681,-16200.97,0.00046,120]
[408862065,1774343673721,-9050.12,0.00046,120]
[408862066,1774343673767,-1207.6,0.00046,90]
[408862067,1774343673812,-188.0,0.00046,30]
[408862068,1774343673858,-531.89339525,0.00046026,60]
[408862069,1774343673902,-156.5216645,0.00046027,120]
[408862070,1774343673944,-448.34671368,0.00046027,120]
[408862071,1774343673988,-500.0,0.00046027,120]
[408862072,1774343674030,-503.02,0.00046027,120]
[408862073,1774343674073,-500.0,0.00046027,60]
[408862074,1774343674115,-500.0,0.00046027,120]
[408862075,1774343674158,-500.0,0.00046027,120]
[408862076,1774343674203,-500.0,0.00046027,120]
[408862077,1774343674249,-500.0,0.00046027,120]
[408862078,1774343674295,-500.0,0.00046027,120]
[408862079,1774343674342,-500.0,0.00046027,120]
[408862080,1774343674388,-1726.03,0.00046027,120]
[408862081,1774343674433,-513.73,0.00046027,120]
[408862082,1774343674478,-1681.41,0.00046027,120]
[408862083,1774343674522,-500.0,0.00046027,120]
[408862084,1774343674564,-1681.41,0.00046027,120]
[408862085,1774343674607,-500.0,0.00046027,120]
[408862086,1774343674650,-500.0,0.00046027,120]
[408862087,1774343674695,-500.0,0.00046027,120]
[408862088,1774343674743,-500.0,0.00046027,120]
[408862089,1774343674795,-500.0,0.00046027,120]
[408862090,1774343674844,-500.0,0.00046027,120]
[408862091,1774343675144,-500.0,0.00046027,30]
[408862092,1774343675191,-500.0,0.00046027,120]
[408862093,1774343675239,-455.57064218,0.00046027,120]
[408862094,1774343675287,-500.0,0.00046027,120]
[408862095,1774343675333,-500.0,0.00046027,120]
[408862096,1774343675378,-500.0,0.00046027,120]
[408862097,1774343675424,-500.0,0.00046027,120]
[408862098,1774343675470,-500.0,0.00046027,60]
[408862099,1774343675515,-972.96,0.00046027,120]
[408862100,1774343675561,-500.0,0.00046027,120]
[408862101,1774343675606,-567.13,0.00046027,120]
[408862102,1774343675649,-500.0,0.00046027,120]
[408862103,1774343675694,-1765.46,0.00046027,120]
[408862104,1774343675741,-500.0,0.00046027,120]
[408862105,1774343675784,-500.0,0.00046027,120]
[408862106,1774343675827,-500.0,0.00046027,120]
[408862107,1774343675874,-657.93,0.00046027,120]
[408862108,1774343675919,-500.0,0.00046027,120]
[408862109,1774343675965,-500.0,0.00046027,120]
[408862110,1774343676009,-500.0,0.00046027,120]
[408862111,1774343676052,-500.0,0.00046027,120]
[408862112,1774343676096,-500.0,0.00046027,120]
[408862113,1774343676139,-1353.82,0.00046027,90]
[408862114,1774343676182,-500.0,0.00046027,120]
[408862115,1774343676227,-500.0,0.00046027,120]
[408862116,1774343676273,-577.26,0.00046027,120]
[408862117,1774343676316,-500.0,0.00046027,120]
[408862118,1774343676358,-854.16,0.00046027,120]
[408862119,1774343676398,-500.0,0.00046027,120]
[408862120,1774343676441,-622.22,0.00046027,120]
[408862121,1774343676484,-2990.76,0.00046027,120]
[408862122,1774343676523,-500.0,0.00046027,120]
[408862123,1774343676562,-500.0,0.00046027,120]
[408862124,1774343676600,-500.0,0.00046027,120]
[408862125,1774343676636,-500.0,0.00046027,120]
[408862126,1774343676674,-318.39153242,0.00046027,120]
[408862127,1774343676712,-500.0,0.00046027,120]
[408862128,1774343676747,-224.8600492,0.00046027,120]
[408862129,1774343676788,-1240.59,0.00046027,120]
[408862130,1774343676828,-500.0,0.00046027,120]
[408862131,1774343676867,-500.0,0.00046027,120]
[408862132,1774343676903,-950.15,0.00046027,120]
[408862133,1774343676939,-500.0,0.00046027,120]
[408862134,1774343676975,-500.0,0.00046027,120]
[408862135,1774343677011,-899.71,0.00046027,120]
[408862136,1774343677048,-500.0,0.00046027,120]
[408862137,1774343677084,-500.0,0.00046027,120]
[408862138,1774343677121,-1801.6,0.00046027,120]
[408862139,1774343677160,-500.0,0.00046027,120]
[408862140,1774343677200,-500.0,0.00046027,120]
[408862141,1774343677239,-407.48686848,0.00046027,120]
[408862142,1774343677280,-500.0,0.00046027,120]
[408862143,1774343677321,-500.0,0.00046027,120]
[408862144,1774343677359,-500.0,0.00046027,120]
[408862145,1774343677398,-500.0,0.00046027,120]
[408862146,1774343677437,-500.0,0.00046027,120]
[408862147,1774343677476,-594.54,0.00046027,120]
[408862148,1774343677513,-1151.07,0.00046027,120]
[408862149,1774343677552,-500.0,0.00046027,120]
[408862150,1774343677589,-500.0,0.00046027,120]
[408862151,1774343677626,-500.0,0.00046027,120]
[408862152,1774343677664,-1738.86,0.00046027,120]
[408862153,1774343677702,-500.0,0.00046027,120]
[408862154,1774343677741,-500.0,0.00046027,120]
[408862155,1774343677799,-500.0,0.00046027,120]
[408862156,1774343677843,-693.75,0.00046027,120]
[408862157,1774343677927,-743.4,0.00046027,120]
[408862158,1774343677967,-1352.88,0.00046027,120]
[408862159,1774343678005,-6207.8,0.00046027,120]
[408862160,1774343678045,-500.0,0.00046027,120]
[408862161,1774343678084,-270.40184858,0.00046027,120]
[408862162,1774343678122,-500.0,0.00046027,120]
[408862163,1774343678161,-504.31,0.00046027,120]
[408862164,1774343678204,-542.07,0.00046027,120]
[408862165,1774343678246,-500.0,0.00046027,120]
[408862166,1774343678288,-2152.6,0.00046027,120]
[408862167,1774343678328,-500.0,0.00046027,60]
[408862168,1774343678369,-500.0,0.00046027,120]
[408862169,1774343678408,-569.71,0.00046027,120]
[408862170,1774343678445,-500.0,0.00046027,120]
[408862171,1774343678482,-500.0,0.00046027,120]
[408862172,1774343678520,-604.99,0.00046027,120]
[408862173,1774343678557,-417.2665919,0.00046027,120]
[408862174,1774343678594,-500.0,0.00046027,120]
[408862175,1774343678631,-500.0,0.00046027,120]
[408862176,1774343678667,-623.34,0.00046027,120]
[408862177,1774343678702,-500.0,0.00046027,120]
[408862178,1774343678742,-500.0,0.00046027,120]
[408862179,1774343678784,-500.0,0.00046027,120]
[408862180,1774343678823,-500.0,0.00046027,120]
[408862181,1774343678864,-500.0,0.00046027,120]
[408862182,1774343678900,-564.01338321,0.00046027,120]
[408862183,1774343678937,-602.04,0.00046027,120]
[408862184,1774343678975,-500.0,0.00046027,120]
[408862185,1774343679015,-730.05,0.00046027,120]
[408862186,1774343679056,-1212.73,0.00046027,120]
[408862187,1774343679098,-1091.4,0.00046027,60]
[408862188,1774343679142,-500.0,0.00046027,120]
[408862189,1774343679187,-500.0,0.00046027,120]
[408862190,1774343679228,-500.0,0.00046027,120]
[408862191,1774343679271,-618.3,0.00046027,120]
[408862192,1774343679311,-574.75,0.00046027,120]
[408862193,1774343679350,-500.0,0.00046027,120]
[408862194,1774343679389,-500.0,0.00046027,120]
[408862195,1774343679427,-500.0,0.00046027,120]
[408862196,1774343679465,-2177.36,0.00046027,120]
[408862197,1774343679503,-500.0,0.00046027,120]
[408862198,1774343679547,-500.0,0.00046027,120]
[408862199,1774343679590,-500.0,0.00046027,120]
[408862200,1774343679630,-500.0,0.00046027,120]
[408862201,1774343679671,-583.79,0.00046027,120]
[408862202,1774343679711,-565.07,0.00046027,120]
[408862203,1774343679750,-500.0,0.00046027,120]
[408862204,1774343679796,-1834.25,0.00046027,120]
[408862205,1774343679837,-500.0,0.00046027,120]
[408862206,1774343679876,-508.82,0.00046027,120]
[408862207,1774343679916,-500.0,0.00046027,120]
[408862208,1774343679955,-1021.78,0.00046027,120]
[408862209,1774343679993,-500.0,0.00046027,120]
[408862210,1774343680035,-331.00703738,0.00046027,120]
[408862211,1774343680074,-500.0,0.00046027,120]
[408862212,1774343680113,-500.0,0.00046027,120]
[408862213,1774343680154,-800.99,0.00046027,120]
[408862214,1774343680194,-500.0,0.00046027,120]
[408862215,1774343680234,-509.38,0.00046027,120]
[408862216,1774343680276,-500.0,0.00046027,120]
[408862217,1774343680317,-576.51,0.00046027,120]
[408862218,1774343680357,-962.78,0.00046027,120]
[408862219,1774343680397,-972.01,0.00046027,120]
[408862220,1774343680437,-837.97,0.00046027,120]
[408862221,1774343680479,-837.64,0.00046027,120]
[408862222,1774343680519,-500.0,0.00046027,120]
[408862223,1774343680563,-500.0,0.00046027,120]
[408862224,1774343680603,-500.0,0.00046027,120]
[408862225,1774343680641,-500.0,0.00046027,120]
[408862226,1774343680678,-500.0,0.00046027,120]
[408862227,1774343680715,-500.0,0.00046027,120]
[408862228,1774343680750,-500.0,0.00046027,120]
[408862229,1774343680789,-1066.06,0.00046027,120]
[408862230,1774343680831,-500.0,0.00046027,120]
[408862231,1774343680870,-500.0,0.00046027,120]
[408862232,1774343680908,-500.0,0.00046027,120]
[408862233,1774343680946,-869.54,0.00046027,120]
[408862234,1774343680988,-2702.93,0.00046027,120]
[408862235,1774343681025,-500.0,0.00046027,120]
[408862236,1774343681067,-546.46,0.00046027,120]
[408862237,1774343681105,-500.0,0.00046027,120]
[408862238,1774343681143,-1138.07,0.00046027,120]
[408862239,1774343681184,-356.06383219,0.00046027,120]
[408862240,1774343681226,-500.0,0.00046027,120]
[408862241,1774343681268,-500.0,0.00046027,120]
[408862242,1774343681307,-500.0,0.00046027,120]
[408862243,1774343681351,-500.0,0.00046027,120]
[408862244,1774343681390,-3001.86,0.00046027,120]
[408862245,1774343681432,-558.60351325,0.00046027,120]
[408862246,1774343681473,-680.57,0.00046027,120]
[408862247,1774343681510,-500.0,0.00046027,30]
[408862248,1774343681547,-500.0,0.00046027,120]
[408862249,1774343681583,-500.0,0.00046027,120]
[408862250,1774343681619,-500.0,0.00046027,120]
[408862251,1774343681655,-499.21053485,0.00046027,120]
[408862252,1774343681692,-263.86830431,0.00046027,120]
[408862253,1774343681868,-643.38,0.00046027,120]
[408862254,1774343681910,-500.0,0.00046027,120]
[408862255,1774343681951,-500.0,0.00046027,120]
[408862256,1774343681990,-500.0,0.00046027,120]
[408862257,1774343682029,-336.3920083,0.00046027,120]
[408862258,1774343682066,-843.35,0.00046027,120]
[408862259,1774343682104,-71294.72205996,0.000462,31]
[408862260,1774343682142,-531.89339525,0.000463,60]
[408862261,1774343682181,-500.0,0.00046301,120]
[408862262,1774343682222,-503.02,0.00046301,120]
[408862263,1774343682263,-502.08758302,0.00046301,60]
[408862264,1774343682307,-500.0,0.00046301,120]
[408862265,1774343682345,-500.0,0.00046301,120]
[408862266,1774343682385,-500.0,0.00046301,120]
[408862267,1774343682423,-500.0,0.00046301,120]
[408862268,1774343682464,-500.0,0.00046301,120]
[408862269,1774343682501,-500.0,0.00046301,120]
[408862270,1774343682539,-1726.03,0.00046301,120]
[408862271,1774343682576,-513.73,0.00046301,120]
[408862272,1774343682614,-1681.41,0.00046301,120]
[408862273,1774343682658,-500.0,0.00046301,120]
[408862274,1774343682696,-1681.41,0.00046301,120]
[408862275,1774343682738,-500.0,0.00046301,120]
[408862276,1774343682779,-500.0,0.00046301,120]
[408862277,1774343682817,-402.83503378,0.00046301,120]
[408862278,1774343682858,-500.0,0.00046301,120]
[408862279,1774343682898,-500.0,0.00046301,120]
[408862280,1774343682938,-500.0,0.00046301,120]
[408862281,1774343682981,-500.0,0.00046301,30]
[408862282,1774343683023,-500.0,0.00046301,120]